fUSD/lending_fUSD_20250702
["ID","MTS","AMOUNT","RATE_DAILY","PERIOD"]
[368964388,1751415043369,-500.0,0.00016628,2]
[368964390,1751415043378,-500.0,0.00016628,2]
[368964392,1751415043387,-500.0,0.00016628,2]
[368964394,1751415043396,-500.0,0.00016628,2]
[368964396,1751415043405,-500.0,0.00016628,2]
[368964398,1751415043415,-500.0,0.00016628,2]
[368964401,1751415043424,-500.0,0.00016628,2]
[368964403,1751415043436,-500.0,0.00016628,2]
[368964404,1751415043445,-500.0,0.00016628,2]
[368964407,1751415043455,-500.0,0.00016628,2]
[368964409,1751415043464,-500.0,0.00016628,2]
[368964411,1751415043474,-500.0,0.00016628,2]
[368964412,1751415043484,-500.0,0.00016628,2]
[368964414,1751415043493,-500.0,0.00016628,2]
[368964416,1751415043503,-500.0,0.00016628,2]
[368964418,1751415043513,-500.0,0.00016628,2]
[368964420,1751415043523,-500.0,0.00016628,2]
[368964422,1751415043532,-151.0,0.00016628,2]
[368964424,1751415043542,-527.093196,0.00016628,2]
[368964427,1751415043552,-527.093196,0.00016628,2]
[368964428,1751415043561,-1213.346159,0.00016628,2]
[368964431,1751415043571,-151.0,0.00016628,2]
[368964433,1751415043581,-1213.346159,0.00016628,2]
[368964435,1751415043591,-151.0,0.00016628,2]
[368964436,1751415043600,-151.0,0.00016628,2]
[368964439,1751415043610,-153.744259,0.00016628,2]
[368964441,1751415043620,-151.606663,0.00016628,2]
[368964443,1751415043630,-346.0,0.00016635,2]
[368964445,1751415043639,-1952.62596987,0.00016684,2]
[368964446,1751415043649,-346.0,0.00016697,2]
[368964449,1751415043660,-1000.0,0.000167,2]
[368964451,1751415043669,-276.668923,0.00016709,2]
[368964453,1751415043679,-18975.29429001,0.00016709,2]
[368964455,1751415043689,-288.63201817,0.00016709,2]
[368964457,1751415043699,-490.0,0.00016709,2]
[368964459,1751415043708,-490.0,0.00016709,2]
[368964461,1751415043718,-182.9847394,0.00016709,2]
[368964463,1751415043727,-490.0,0.00016709,2]
[368964465,1751415043736,-490.0,0.00016709,2]
[368964467,1751415043745,-490.0,0.00016709,2]
[368964469,1751415043754,-375.41257074,0.00016709,2]
[368964470,1751415043763,-490.0,0.00016709,2]
[368964473,1751415043774,-490.0,0.00016709,2]
[368964475,1751415043783,-490.0,0.00016709,2]
[368964477,1751415043793,-384.21,0.00016709,2]
[368964479,1751415043802,-490.0,0.00016709,2]
[368964481,1751415043812,-490.0,0.00016709,2]
[368964483,1751415043821,-490.0,0.00016709,2]
[368964485,1751415043830,-490.0,0.00016709,2]
[368964487,1751415043839,-490.0,0.00016709,2]
[368964489,1751415043848,-490.0,0.00016709,2]
[368964490,1751415043857,-490.0,0.00016709,2]
[368964493,1751415043867,-490.0,0.00016709,2]
[368964495,1751415043877,-490.0,0.00016709,2]
[368964497,1751415043886,-490.0,0.00016709,2]
[368964499,1751415043895,-490.0,0.00016709,2]
[368964500,1751415043905,-490.0,0.00016709,2]
[368964503,1751415043915,-490.0,0.00016709,2]
[368964505,1751415043924,-490.0,0.00016709,2]
[368964507,1751415043934,-490.0,0.00016709,2]
[368964508,1751415043944,-490.0,0.00016709,2]
[368964510,1751415043953,-490.0,0.00016709,2]
[368964513,1751415043963,-490.0,0.00016709,2]
[368964515,1751415043972,-490.0,0.00016709,2]
[368964517,1751415043985,-490.0,0.00016709,2]
[368964519,1751415043994,-490.0,0.00016709,2]
[368964521,1751415044004,-490.0,0.00016709,2]
[368964522,1751415044013,-490.0,0.00016709,2]
[368964524,1751415044023,-490.0,0.00016709,2]
[368964526,1751415044032,-490.0,0.00016709,2]
[368964528,1751415044041,-490.0,0.00016709,2]
[368964530,1751415044050,-509.7,0.00016709,2]
[368964532,1751415044061,-490.0,0.00016709,2]
[368964534,1751415044070,-490.0,0.00016709,2]
[368964536,1751415044079,-490.0,0.00016709,2]
[368964538,1751415044089,-490.0,0.00016709,2]
[368964540,1751415044098,-490.0,0.00016709,2]
[368964542,1751415044107,-490.0,0.00016709,2]
[368964544,1751415044117,-490.0,0.00016709,2]
[368964546,1751415044126,-725.87,0.00016709,2]
[368964548,1751415044135,-490.0,0.00016709,2]
[368964550,1751415044144,-490.0,0.00016709,2]
[368964552,1751415044153,-490.0,0.00016709,2]
[368964554,1751415044163,-490.0,0.00016709,2]
[368964556,1751415044173,-491.72595313,0.00016709,2]
[368964558,1751415044183,-490.0,0.00016709,2]
[368964560,1751415044193,-490.0,0.00016709,2]
[368964562,1751415044203,-490.0,0.00016709,2]
[368964564,1751415044212,-490.0,0.00016709,2]
[368964566,1751415044222,-490.0,0.00016709,2]
[368964568,1751415044232,-490.0,0.00016709,2]
[368964570,1751415044241,-490.0,0.00016709,2]
[368964572,1751415044251,-490.0,0.00016709,2]
[368964573,1751415044260,-490.0,0.00016709,2]
[368964574,1751415044269,-490.0,0.00016709,2]
[368964575,1751415044279,-490.0,0.00016709,2]
[368964576,1751415044289,-490.0,0.00016709,2]
[368964577,1751415044298,-619.93,0.00016709,2]
[368964578,1751415044308,-490.0,0.00016709,2]
[368964579,1751415044317,-490.0,0.00016709,2]
[368964580,1751415044327,-490.0,0.00016709,2]
[368964582,1751415044336,-490.0,0.00016709,2]
[368964584,1751415044346,-490.0,0.00016709,2]
[368964586,1751415044355,-490.0,0.00016709,2]
[368964588,1751415044365,-490.0,0.00016709,2]
[368964590,1751415044374,-490.0,0.00016709,2]
[368964592,1751415044383,-490.0,0.00016709,2]
[368964594,1751415044392,-490.0,0.00016709,2]
[368964596,1751415044402,-490.0,0.00016709,2]
[368964598,1751415044411,-490.0,0.00016709,2]
[368964600,1751415044420,-490.0,0.00016709,2]
[368964602,1751415044429,-657.58,0.00016709,2]
[368964604,1751415044438,-632.15,0.00016709,2]
[368964606,1751415044447,-490.0,0.00016709,2]
[368964608,1751415044456,-151.0,0.00016709,2]
[368964610,1751415044465,-537.45,0.00016709,2]
[368964611,1751415044475,-490.0,0.00016709,2]
[368964613,1751415044484,-490.0,0.00016709,2]
[368964615,1751415044493,-490.0,0.00016709,2]
[368964617,1751415044503,-490.0,0.00016709,2]
[368964619,1751415044512,-490.0,0.00016709,2]
[368964621,1751415044523,-490.0,0.00016709,2]
[368964623,1751415044533,-493.21,0.00016709,2]
[368964625,1751415044542,-490.0,0.00016709,2]
[368964627,1751415044551,-490.0,0.00016709,2]
[368964629,1751415044561,-490.0,0.00016709,2]
[368964631,1751415044570,-496.4563813,0.00016709,2]
[368964633,1751415044579,-490.0,0.00016709,2]
[368964635,1751415044588,-490.0,0.00016709,2]
[368964637,1751415044598,-490.0,0.00016709,2]
[368964639,1751415044607,-490.0,0.00016709,2]
[368964641,1751415044618,-490.0,0.00016709,2]
[368964643,1751415044627,-490.0,0.00016709,2]
[368964645,1751415044637,-490.0,0.00016709,2]
[368964647,1751415044646,-283.65159694,0.00016709,2]
[368964649,1751415044655,-490.0,0.00016709,2]
[368964651,1751415044664,-490.0,0.00016709,2]
[368964653,1751415044674,-490.0,0.00016709,2]
[368964655,1751415044683,-1500.0,0.00016709,2]
[368964657,1751415044693,-490.0,0.00016709,2]
[368964659,1751415044703,-428.54398259,0.00016709,2]
[368964661,1751415044712,-151.0,0.00016709,2]
[368964663,1751415044721,-504.48208532,0.00016709,2]
[368964665,1751415044730,-490.0,0.00016709,2]
[368964667,1751415044739,-490.0,0.00016709,2]
[368964669,1751415044749,-490.0,0.00016709,2]
[368964671,1751415044758,-151.0,0.00016709,2]
[368964673,1751415044768,-490.0,0.00016709,2]
[368964675,1751415044778,-490.0,0.00016709,2]
[368964677,1751415044787,-490.0,0.00016709,2]
[368964679,1751415044796,-490.0,0.00016709,2]
[368964681,1751415044806,-490.0,0.00016709,2]
[368964683,1751415044815,-490.0,0.00016709,2]
[368964685,1751415044824,-518.33,0.00016709,2]
[368964687,1751415044833,-490.0,0.00016709,2]
[368964689,1751415044842,-490.0,0.00016709,2]
[368964691,1751415044852,-490.0,0.00016709,2]
[368964693,1751415044861,-490.0,0.00016709,2]
[368964695,1751415044870,-490.0,0.00016709,2]
[368964697,1751415044879,-490.0,0.00016709,2]
[368964699,1751415044888,-490.0,0.00016709,2]
[368964700,1751415044897,-490.0,0.00016709,2]
[368964702,1751415044906,-490.0,0.00016709,2]
[368964704,1751415044915,-490.0,0.00016709,2]
[368964706,1751415044924,-151.0,0.00016709,2]
[368964708,1751415044934,-490.0,0.00016709,2]
[368964710,1751415044943,-490.0,0.00016709,2]
[368964712,1751415044953,-490.0,0.00016709,2]
[368964714,1751415044962,-490.0,0.00016709,2]
[368964716,1751415044971,-490.0,0.00016709,2]
[368964718,1751415044985,-490.0,0.00016709,2]
[368964720,1751415044995,-490.0,0.00016709,2]
[368964722,1751415045005,-490.0,0.00016709,2]
[368964724,1751415045015,-490.0,0.00016709,2]
[368964726,1751415045025,-151.0,0.00016709,2]
[368964728,1751415045034,-1213.346159,0.00016709,2]
[368964730,1751415045043,-490.0,0.00016709,2]
[368964732,1751415045053,-490.0,0.00016709,2]
[368964734,1751415045063,-490.0,0.00016709,2]
[368964736,1751415045072,-1213.346159,0.00016709,2]
[368964738,1751415045082,-490.0,0.00016709,2]
[368964740,1751415045091,-490.0,0.00016709,2]
[368964742,1751415045100,-510.3,0.00016709,2]
[368964744,1751415045109,-490.0,0.00016709,2]
[368964746,1751415045119,-490.0,0.00016709,2]
[368964748,1751415045128,-490.0,0.00016709,2]
[368964751,1751415045138,-490.0,0.00016709,2]
[368964752,1751415045148,-151.0,0.00016709,2]
[368964754,1751415045157,-490.0,0.00016709,2]
[368964756,1751415045166,-225.13061576,0.00016709,2]
[368964758,1751415045176,-560.16307615,0.00016709,2]
[368964761,1751415045185,-269.70921849,0.00016709,2]
[368964762,1751415045195,-153.669861,0.00016709,2]
[368964764,1751415045204,-490.0,0.00016709,2]
[368964766,1751415045213,-490.0,0.00016709,2]
[368964768,1751415045222,-151.0,0.00016709,2]
[368964770,1751415045231,-490.0,0.00016709,2]
[368964772,1751415045240,-367.39131361,0.00016709,2]
[368964774,1751415045249,-490.0,0.00016709,2]
[368964776,1751415045258,-490.0,0.00016709,2]
[368964778,1751415045267,-490.0,0.00016709,2]
[368964781,1751415045276,-594.26,0.00016709,2]
[368964783,1751415045286,-490.0,0.00016709,2]
[368964785,1751415045296,-490.0,0.00016709,2]
[368964787,1751415045305,-490.0,0.00016709,2]
[368964789,1751415045315,-490.0,0.00016709,2]
[368964791,1751415045324,-2731.1,0.00016709,2]
[368964793,1751415045333,-490.0,0.00016709,2]
[368964795,1751415045342,-490.0,0.00016709,2]
[368964797,1751415045352,-490.0,0.00016709,2]
[368964799,1751415045361,-490.0,0.00016709,2]
[368964801,1751415045370,-490.0,0.00016709,2]
[368964803,1751415045379,-490.0,0.00016709,2]
[368964805,1751415045388,-672.02,0.00016709,2]
[368964807,1751415045398,-490.0,0.00016709,2]
[368964809,1751415045407,-490.0,0.00016709,2]
[368964811,1751415045416,-490.0,0.00016709,2]
[368964813,1751415045426,-418.45551021,0.00016709,2]
[368964907,1751415046348,-150.0,0.00016438,2]
[368964909,1751415046359,-182.59398443,0.00016454,2]
[368964911,1751415046370,-169.90513557,0.00016455,2]
[368964914,1751415046383,-583.09486443,0.00016455,2]
[368964916,1751415046395,-71.54448979,0.00016709,2]
[368964918,1751415046406,-65.09037341,0.00016709,2]
[368964922,1751415046436,-424.90962659,0.00016709,2]
[368964924,1751415046447,-490.0,0.00016709,2]
[368964926,1751415046458,-490.0,0.00016709,2]
[368964929,1751415046469,-490.0,0.00016709,2]
[368964931,1751415046480,-490.0,0.00016709,2]
[368964933,1751415046491,-490.0,0.00016709,2]
[368964935,1751415046502,-490.0,0.00016709,2]
[368964937,1751415046512,-490.0,0.00016709,2]
[368964940,1751415046524,-490.0,0.00016709,2]
[368964942,1751415046535,-490.0,0.00016709,2]
[368964944,1751415046546,-490.0,0.00016709,2]
[368964946,1751415046557,-838.04,0.00016709,2]
[368964948,1751415046567,-490.0,0.00016709,2]
[368964951,1751415046579,-490.0,0.00016709,2]
[368964953,1751415046591,-490.0,0.00016709,2]
[368964955,1751415046602,-490.0,0.00016709,2]
[368964957,1751415046612,-490.0,0.00016709,2]
[368964959,1751415046623,-490.0,0.00016709,2]
[368964961,1751415046634,-490.0,0.00016709,2]
[368964963,1751415046645,-490.0,0.00016709,2]
[368964966,1751415046656,-490.0,0.00016709,2]
[368964968,1751415046667,-490.0,0.00016709,2]
[368964970,1751415046677,-490.0,0.00016709,2]
[368964972,1751415046689,-490.0,0.00016709,2]
[368964974,1751415046700,-490.0,0.00016709,2]
[368964976,1751415046710,-490.0,0.00016709,2]
[368964978,1751415046721,-3727.59,0.00016709,2]
[368964981,1751415046732,-490.0,0.00016709,2]
[368964983,1751415046743,-500.0,0.00016709,2]
[368964985,1751415046754,-490.0,0.00016709,2]
[368964987,1751415046764,-490.0,0.00016709,2]
[368964989,1751415046776,-490.0,0.00016709,2]
[368964991,1751415046787,-490.0,0.00016709,2]
[368964994,1751415046798,-490.0,0.00016709,2]
[368964996,1751415046810,-490.0,0.00016709,2]
[368964998,1751415046820,-490.0,0.00016709,2]
[368965000,1751415046831,-491.3160949,0.00016709,2]
[368965002,1751415046842,-490.0,0.00016709,2]
[368965004,1751415046855,-490.0,0.00016709,2]
[368965006,1751415046865,-490.0,0.00016709,2]
[368965008,1751415046876,-490.0,0.00016709,2]
[368965010,1751415046887,-613.21,0.00016709,2]
[368965013,1751415046898,-1183.34,0.00016709,2]
[368965015,1751415046909,-490.0,0.00016709,2]
[368965017,1751415046920,-224.39,0.00016709,2]
[368965019,1751415046931,-397.44,0.00016709,2]
[368965021,1751415046941,-490.0,0.00016709,2]
[368965023,1751415046953,-151.0,0.00016709,2]
[368965026,1751415046964,-490.0,0.00016709,2]
[368965028,1751415046975,-490.0,0.00016709,2]
[368965030,1751415046990,-6118.61,0.00016709,2]
[368965032,1751415047000,-490.0,0.00016709,2]
[368965034,1751415047011,-490.0,0.00016709,2]
[368965036,1751415047023,-490.0,0.00016709,2]
[368965039,1751415047033,-490.0,0.00016709,2]
[368965041,1751415047045,-490.0,0.00016709,2]
[368965043,1751415047056,-490.0,0.00016709,2]
[368965045,1751415047067,-490.0,0.00016709,2]
[368965047,1751415047078,-1462.02,0.00016709,2]
[368965049,1751415047089,-298.00244712,0.00016709,2]
[368965051,1751415047099,-490.0,0.00016709,2]
[368965053,1751415047110,-490.0,0.00016709,2]
[368965056,1751415047121,-490.0,0.00016709,2]
[368965058,1751415047131,-490.0,0.00016709,2]
[368965060,1751415047142,-490.0,0.00016709,2]
[368965062,1751415047153,-1657.31,0.00016709,2]
[368965064,1751415047164,-500.0,0.00016709,2]
[368965066,1751415047175,-490.0,0.00016709,2]
[368965069,1751415047186,-490.0,0.00016709,2]
[368965071,1751415047196,-812.22,0.00016709,2]
[368965073,1751415047207,-490.0,0.00016709,2]
[368965075,1751415047219,-490.0,0.00016709,2]
[368965077,1751415047229,-522.1,0.00016709,2]
[368965079,1751415047240,-151.0,0.00016709,2]
[368965081,1751415047251,-490.0,0.00016709,2]
[368965084,1751415047262,-716.23,0.00016709,2]
[368965086,1751415047273,-490.0,0.00016709,2]
[368965088,1751415047283,-312.96077648,0.00016709,2]
[368965090,1751415047294,-490.0,0.00016709,2]
[368965092,1751415047305,-490.0,0.00016709,2]
[368965094,1751415047316,-490.63868555,0.00016709,2]
[368965096,1751415047327,-490.0,0.00016709,2]
[368965099,1751415047338,-830.39,0.00016709,2]
[368965101,1751415047349,-490.0,0.00016709,2]
[368965103,1751415047360,-490.0,0.00016709,2]
[368965105,1751415047371,-490.0,0.00016709,2]
[368965106,1751415047383,-490.0,0.00016709,2]
[368965107,1751415047394,-568.09035676,0.00016709,2]
[368965108,1751415047404,-490.0,0.00016709,2]
[368965109,1751415047416,-675.61,0.00016709,2]
[368965110,1751415047427,-490.0,0.00016709,2]
[368965111,1751415047438,-151.0,0.00016709,2]
[368965112,1751415047449,-490.0,0.00016709,2]
[368965114,1751415047459,-490.0,0.00016709,2]
[368965117,1751415047470,-500.0,0.00016709,2]
[368965119,1751415047480,-490.0,0.00016709,2]
[368965121,1751415047491,-490.0,0.00016709,2]
[368965123,1751415047501,-490.0,0.00016709,2]
[368965125,1751415047512,-490.0,0.00016709,2]
[368965127,1751415047523,-490.0,0.00016709,2]
[368965129,1751415047534,-151.0,0.00016709,2]
[368965131,1751415047545,-490.0,0.00016709,2]
[368965134,1751415047556,-490.0,0.00016709,2]
[368965136,1751415047567,-418.09256457,0.00016709,2]
[368965138,1751415047578,-490.0,0.00016709,2]
[368965140,1751415047589,-490.0,0.00016709,2]
[368965142,1751415047600,-490.0,0.00016709,2]
[368965144,1751415047610,-151.0,0.00016709,2]
[368965146,1751415047621,-151.0,0.00016709,2]
[368965149,1751415047632,-747.29,0.00016709,2]
[368965151,1751415047643,-150.0,0.0001671,2]
[368965153,1751415047654,-151.0,0.0001671,2]
[368965155,1751415047664,-151.0,0.0001671,2]
[368965157,1751415047675,-151.0,0.0001671,2]
[368965159,1751415047686,-166.097063,0.0001671,2]
[368965161,1751415047697,-576.847941,0.0001671,2]
[368965163,1751415047707,-151.0,0.0001671,2]
[368965166,1751415047718,-151.0,0.0001671,2]
[368965168,1751415047729,-151.0,0.0001671,2]
[368965170,1751415047740,-401.42738435,0.00016711,2]
[368965172,1751415047751,-490.0,0.00016711,2]
[368965174,1751415047761,-164.78515358,0.00016711,2]
[368966642,1751415097697,150.0,0.00013902,2]
[368966644,1751415131410,162.38,0.00013699,2]
[368966681,1751416170078,154.26,0.00013699,2]
[368966698,1751416231552,-1127.73726019,0.0001421,7]
[368966701,1751416231763,-372.26273981,0.0001421,7]
[368966702,1751416231773,-549.0,0.00014491,2]
[368966703,1751416231782,-78.65309017,0.00015,2]
[368966704,1751416231793,-171.34690983,0.00015,2]
[368966705,1751416231802,-741.65309017,0.00015,14]
[368966706,1751416231874,-543.99376441,0.00015,14]
[368966712,1751416237609,-290.35999859,0.00015,14]
[368966713,1751416237618,-274.40273171,0.0001517,2]
[368966714,1751416237627,-500.0,0.00015178,2]
[368966715,1751416237636,-168.0,0.0001527,2]
[368966716,1751416237644,-168.0,0.00015398,2]
[368966717,1751416237654,-291.04,0.00015409,2]
[368966718,1751416237663,-178.34,0.0001545,2]
[368966719,1751416237672,-380.75690978,0.00015462,2]
[368966890,1751416239730,-723.67299999,0.00015462,2]
[368966929,1751416240102,-95.57009023,0.00015462,2]
[368966931,1751416240111,-4371.7,0.00015463,2]
[368966933,1751416240121,-300.0,0.00015474,2]
[368966935,1751416240130,-651.0,0.00015476,2]
[368966937,1751416240139,-250.0,0.000156,2]
[368966939,1751416240148,-651.0,0.00015633,2]
[368966941,1751416240157,-200.0,0.00015699,7]
[368966943,1751416240167,-1000.0,0.00015713,2]
[368966945,1751416240176,-207.4,0.00015875,2]
[368966947,1751416240185,-1272.02700231,0.000159,2]
[368966949,1751416240194,-5508.0,0.000161,3]
[368966951,1751416240204,-1995.40232747,0.00016238,2]
[368966953,1751416240213,-1077.23565558,0.00016238,2]
[368966955,1751416240223,-500.0,0.00016337,2]
[368966957,1751416240233,-599.86464105,0.00016337,2]
[368966959,1751416240242,-622.57918819,0.00016337,2]
[368966961,1751416240251,-500.0,0.00016337,2]
[368966963,1751416240260,-500.0,0.00016337,2]
[368966965,1751416240270,-335.0,0.00016337,2]
[368966967,1751416240279,-500.0,0.00016337,2]
[368966969,1751416240288,-499.99999999,0.00016337,2]
[368966971,1751416240297,-500.0,0.00016338,2]
[368966973,1751416240307,-36208.7832,0.00016338,2]
[368966975,1751416240316,-98626.6375,0.00016338,2]
[368966976,1751416240327,-1000.0,0.00016338,2]
[368966979,1751416240336,-712.3657,0.00016338,2]
[368966981,1751416240347,-2500.0,0.00016338,2]
[368966982,1751416240356,-220.187006,0.00016377,2]
[368966985,1751416240366,-238.49,0.00016428,2]
[368966986,1751416240379,-151.0,0.00016428,2]
[368966988,1751416240388,-1995.40232742,0.00016431,2]
[368966990,1751416240397,-490.0,0.00016438,2]
[368966992,1751416240406,-490.0,0.00016438,2]
[368966994,1751416240415,-1000.0,0.00016438,2]
[368966996,1751416240425,-495.25432239,0.00016438,2]
[368966998,1751416240434,-490.0,0.00016438,2]
[368967000,1751416240444,-490.0,0.00016438,2]
[368967002,1751416240455,-490.0,0.00016438,2]
[368967005,1751416240465,-490.0,0.00016438,2]
[368967007,1751416240475,-490.0,0.00016438,2]
[368967009,1751416240484,-440.17738435,0.00016438,2]
[368967010,1751416240493,-459.52200621,0.00016438,2]
[368967012,1751416240503,-490.0,0.00016438,2]
[368967014,1751416240513,-219.78444559,0.00016438,2]
[368967016,1751416240523,-361.90000001,0.00016438,2]
[368967018,1751416240533,-474.46079695,0.00016438,2]
[368967020,1751416240543,-490.0,0.00016438,2]
[368967022,1751416240553,-439.63587574,0.00016438,2]
[368967024,1751416240563,-490.0,0.00016438,2]
[368967026,1751416240573,-490.0,0.00016438,2]
[368967028,1751416240584,-490.0,0.00016438,2]
[368967030,1751416240593,-388.02079176,0.00016438,2]
[368967032,1751416240602,-490.0,0.00016438,2]
[368967034,1751416240611,-490.0,0.00016438,2]
[368967036,1751416240620,-490.0,0.00016438,2]
[368967038,1751416240630,-490.0,0.00016438,2]
[368967040,1751416240639,-490.0,0.00016438,2]
[368967042,1751416240648,-490.0,0.00016438,2]
[368967044,1751416240657,-490.0,0.00016438,2]
[368967046,1751416240667,-490.0,0.00016438,2]
[368967048,1751416240676,-490.0,0.00016438,2]
[368967050,1751416240686,-490.0,0.00016438,2]
[368967052,1751416240696,-490.0,0.00016438,2]
[368967054,1751416240706,-490.0,0.00016438,2]
[368967056,1751416240716,-490.0,0.00016438,2]
[368967058,1751416240724,-490.0,0.00016438,2]
[368967060,1751416240733,-490.0,0.00016438,2]
[368967074,1751416240946,-500.0,0.00016438,2]
[368967075,1751416240956,-490.0,0.00016438,2]
[368967077,1751416240966,-150.0,0.00016438,2]
[368967079,1751416240975,-490.0,0.00016438,2]
[368967081,1751416240986,-150.0,0.00016438,2]
[368967083,1751416240996,-490.0,0.00016438,2]
[368967085,1751416241005,-572.83,0.00016438,2]
[368967087,1751416241014,-200.0,0.00016438,2]
[368967089,1751416241023,-490.0,0.00016438,2]
[368967091,1751416241032,-250.0,0.00016438,2]
[368967093,1751416241042,-490.0,0.00016438,2]
[368967095,1751416241054,-490.0,0.00016438,2]
[368967098,1751416241064,-490.0,0.00016438,2]
[368967100,1751416241074,-428.54398259,0.00016438,2]
[368967102,1751416241084,-225.13061576,0.00016438,2]
[368967104,1751416241093,-490.0,0.00016438,2]
[368967106,1751416241103,-490.0,0.00016438,2]
[368967108,1751416241113,-490.0,0.00016438,2]
[368967110,1751416241122,-490.0,0.00016438,2]
[368967112,1751416241132,-504.48208532,0.00016438,2]
[368967114,1751416241141,-490.0,0.00016438,2]
[368967116,1751416241151,-490.0,0.00016438,2]
[368967118,1751416241160,-490.0,0.00016438,2]
[368967120,1751416241170,-295.95,0.00016438,2]
[368967122,1751416241179,-490.0,0.00016438,2]
[368967124,1751416241187,-490.0,0.00016438,2]
[368967126,1751416241197,-490.0,0.00016438,2]
[368967128,1751416241206,-224.95,0.00016438,2]
[368967130,1751416241215,-490.0,0.00016438,2]
[368967132,1751416241225,-490.0,0.00016438,2]
[368967134,1751416241235,-490.0,0.00016438,2]
[368967136,1751416241244,-490.0,0.00016438,2]
[368967138,1751416241253,-490.0,0.00016438,2]
[368967140,1751416241262,-490.0,0.00016438,2]
[368967142,1751416241271,-490.0,0.00016438,2]
[368967144,1751416241280,-490.0,0.00016438,2]
[368967146,1751416241290,-490.93,0.00016438,2]
[368967148,1751416241301,-490.0,0.00016438,2]
[368967150,1751416241310,-490.0,0.00016438,2]
[368967152,1751416241320,-490.0,0.00016438,2]
[368967154,1751416241328,-490.0,0.00016438,2]
[368967156,1751416241337,-490.0,0.00016438,2]
[368967158,1751416241346,-490.0,0.00016438,2]
[368967160,1751416241356,-490.0,0.00016438,2]
[368967162,1751416241366,-490.0,0.00016438,2]
[368967164,1751416241376,-490.0,0.00016438,2]
[368967166,1751416241387,-490.0,0.00016438,2]
[368967168,1751416241396,-490.0,0.00016438,2]
[368967170,1751416241405,-490.0,0.00016438,2]
[368967172,1751416241415,-490.0,0.00016438,2]
[368967174,1751416241425,-490.0,0.00016438,2]
[368967176,1751416241435,-594.26,0.00016438,2]
[368967178,1751416241444,-490.0,0.00016438,2]
[368967179,1751416241453,-490.0,0.00016438,2]
[368967181,1751416241463,-560.16307615,0.00016438,2]
[368967183,1751416241472,-490.0,0.00016438,2]
[368967185,1751416241482,-490.0,0.00016438,2]
[368967187,1751416241491,-247.83409718,0.00016438,2]
[368967189,1751416241500,-490.0,0.00016438,2]
[368967191,1751416241510,-490.0,0.00016438,2]
[368967193,1751416241520,-490.0,0.00016438,2]
[368967195,1751416241529,-490.0,0.00016438,2]
[368967197,1751416241539,-490.0,0.00016438,2]
[368967199,1751416241548,-568.39,0.00016438,2]
[368967201,1751416241557,-490.0,0.00016438,2]
[368967203,1751416241566,-490.0,0.00016438,2]
[368967205,1751416241576,-490.0,0.00016438,2]
[368967207,1751416241585,-490.0,0.00016438,2]